bitfinex-derivatives/quotes_SOLF0:USTF0_20250319
["timestamp","ask_amount","ask_price","bid_price","bid_amount"]
[1742400087356,7.5611,132.24,132.23,31.59648241]
[1742400088160,7.5611,132.24,132.23,0.05648241]
[1742400093173,7.5611,132.24,132.23,0.05648241]
[1742400095272,21.67318161,132.25,132.17,8.0874]
[1742400095475,21.62302074,132.19,132.16,31.52]
[1742400095773,7.5651,132.17,132.16,31.52]
[1742400095969,21.62302074,132.19,132.16,31.52]
[1742400096182,21.62302074,132.17,132.16,31.52]
[1742400096569,7.5656,132.16,132.15,0.04973332]
[1742400096970,21.62302074,132.17,132.15,0.04973332]
[1742400097471,0.05765014,132.18,132.15,0.04973332]
[1742400098777,21.62302074,132.17,132.15,0.04973332]
[1742400099173,0.05765014,132.18,132.15,0.04973332]
[1742400099979,7.5656,132.16,132.15,0.04973332]
[1742400101680,42.19876862,132.17,132.15,0.04973332]
[1742400101881,0.05765014,132.18,132.15,0.04973332]
[1742400102084,0.05765014,132.18,132.15,7.61563332]
[1742400102270,7.62235014,132.18,132.15,7.61563332]
[1742400102785,7.5651,132.17,132.15,0.04973332]
[1742400103075,34.69101876,132.18,132.15,0.04973332]
[1742400103775,7.5656,132.16,132.15,0.04973332]
[1742400103981,34.63336862,132.16,132.12,31.52]
[1742400104177,34.63336862,132.16,132.1,31.52]
[1742400104379,7.5675,132.13,132.08,12.2271]
[1742400104579,7.5675,132.13,132.09,31.52]
[1742400104782,7.5675,132.13,132.1,7.5687]
[1742400105277,7.62367437,132.13,132.1,7.62475297]
[1742400105478,0.05617437,132.13,132.1,0.05605297]
[1742400106075,7.62377437,132.13,132.1,0.05605297]
[1742400106277,0.05617437,132.13,132.1,0.05605297]
[1742400106678,7.5685,132.11,132.1,0.05605297]
[1742400107382,0.05617437,132.13,132.1,0.05605297]
[1742400108086,7.5685,132.11,132.1,0.05605297]
[1742400108388,0.05617437,132.13,132.1,0.05605297]
[1742400108581,7.5685,132.11,132.1,0.05605297]
[1742400108987,34.63336862,132.12,132.04,12.577]
[1742400109284,34.63336862,132.1,132.04,7.5722]
[1742400109984,7.571,132.07,132.04,7.5722]
[1742400110174,34.63336862,132.1,132.06,0.04827631]
[1742400110379,7.62196361,132.08,132.06,0.04827631]
[1742400110581,0.05176361,132.08,132.06,0.05066398]
[1742400110878,0.05176361,132.08,132.06,7.62196398]
[1742400111083,0.05176361,132.08,132.06,0.05066398]
[1742400111282,0.05176361,132.08,132.07,7.5708]
[1742400114791,0.05176361,132.08,132.06,39.16176398]
[1742400115092,0.05176361,132.08,132.06,31.59066398]
[1742400115685,0.05176361,132.08,132.06,39.16176398]
[1742400116491,0.05176361,132.08,132.07,7.5708]
[1742400116692,0.05176361,132.08,132.06,31.59066398]
[1742400117089,0.05176361,132.08,132.06,39.16156398]
[1742400117984,0.05176361,132.08,132.06,31.59066398]
[1742400118184,0.05176361,132.08,132.06,0.05066398]
[1742400118393,7.5708,132.07,132.06,0.05066398]
[1742400118891,66.22513223,132.08,132.01,31.54]
[1742400119095,7.5734,132.03,132.01,31.54]
[1742400119385,34.63336862,132.06,132.01,31.54]
[1742400119586,66.17336862,132.08,132.01,31.54]
[1742400119789,66.17336862,132.08,132.03,7.5731]
[1742400119984,0.04882336,132.06,132.03,7.62359062]
[1742400120185,7.5723,132.05,132.03,7.62349062]
[1742400120386,0.04882336,132.06,132.03,7.62349062]
[1742400120587,0.04882336,132.06,132.04,31.52]
[1742400120888,268.5883,132.12,132.04,31.52]
[1742400121094,34.63336862,132.17,132.05,42.88296862]
[1742400121294,7.5656,132.16,132.12,7.5676]
[1742400121502,34.63336862,132.17,132.11,31.54]
[1742400121794,34.63336862,132.15,132.11,31.54]
[1742400121994,7.567,132.14,132.13,0.04895733]
[1742400122390,34.68885484,132.15,132.13,0.04895733]
[1742400122690,42.25535484,132.15,132.13,0.04895733]
[1742400122990,34.68885484,132.15,132.13,0.04895733]
[1742400123695,7.5668,132.14,132.13,0.04895733]
[1742400125291,42.25535484,132.15,132.13,0.04895733]
[1742400125491,34.68885484,132.15,132.13,0.04895733]
[1742400125987,34.68885484,132.15,132.09,31.52]
[1742400126194,34.63336862,132.13,132.09,31.52]
[1742400126492,7.5686,132.11,132.09,31.52]
[1742400126694,34.63336862,132.11,132.07,31.52]
[1742400126994,7.5703,132.08,132.06,31.52]
[1742400127192,34.63336862,132.09,132.05,4.2031]
[1742400127494,34.63336862,132.09,132.06,0.05646819]
[1742400127699,7.5706,132.08,132.06,0.05646819]
[1742400127997,0.05745283,132.1,132.06,0.05646819]
[1742400128191,7.62685283,132.1,132.07,7.5704]
[1742400128590,0.05745283,132.1,132.06,0.05646819]
[1742400128989,31.57745283,132.1,132.06,0.05646819]
[1742400129301,7.5732,132.03,132.0,8.2845]
[1742400129599,34.63336862,132.05,131.99,39.0948]
[1742400129903,34.63336862,132.03,131.98,49.25354508]
[1742400130097,34.63336862,132.03,131.98,7.5757]
[1742400130293,7.5747,132.01,131.98,7.5757]
[1742400130595,0.04986782,132.02,131.99,7.62929412]
[1742400130996,0.04986782,132.02,131.99,0.05409412]
[1742400131501,0.04986782,132.02,132.0,31.52]
[1742400131697,0.04986782,132.02,132.01,7.5742]
[1742400132294,261.12,132.07,132.0,31.52]
[1742400132496,34.63336862,132.09,132.0,31.52]
[1742400133400,0.05069334,132.06,132.03,0.05629671]
[1742400133901,0.05069334,132.06,132.04,7.5721]
[1742400134201,0.05069334,132.06,132.03,0.05629671]
[1742400134402,0.05069334,132.06,132.05,7.5719]
[1742400135503,34.63336862,132.13,132.1,7.5691]
[1742400135900,7.5666,132.15,132.11,39.0879]
[1742400136495,7.5669,132.14,132.11,39.0879]
[1742400136820,7.61983292,132.14,132.12,0.05735485]
[1742400136997,0.05293292,132.14,132.12,0.05735485]
[1742400137498,7.5673,132.13,132.12,0.05735485]
[1742400139204,34.68630154,132.14,132.12,0.05735485]
[1742400139396,0.05293292,132.14,132.12,0.05735485]
[1742400139604,0.05293292,132.14,132.12,31.57735485]
[1742400140001,0.05293292,132.14,132.12,0.05735485]
[1742400140312,7.5673,132.13,132.12,0.05735485]
[1742400140708,34.68630154,132.14,132.1,31.52]
[1742400140902,7.5688,132.11,132.08,39.0901]
[1742400141405,7.5696,132.09,132.08,31.52]
[1742400141606,34.63336862,132.1,132.05,4.2534]
[1742400141808,34.6854614,132.1,132.07,0.0511118]
[1742400143000,0.05209278,132.1,132.08,7.5701]
[1742400143201,0.05209278,132.1,132.07,0.0511118]
[1742400143605,7.5701,132.09,132.07,31.5711118]
[1742400143810,0.05209278,132.1,132.07,31.5711118]
[1742400144129,7.57,132.09,132.07,31.5711118]
[1742400144625,0.05209278,132.1,132.07,31.5711118]
[1742400144817,7.5702,132.08,132.07,31.5711118]
[1742400145425,7.5702,132.08,132.07,0.0511118]
[1742400145724,34.6854614,132.1,132.07,0.0511118]
[1742400146124,42.2547614,132.1,132.07,0.0511118]
[1742400146321,34.6854614,132.1,132.07,0.0511118]
[1742400146515,0.05209278,132.1,132.07,0.0511118]
[1742400147124,7.62159278,132.1,132.07,0.0511118]
[1742400147324,34.6854614,132.1,132.07,0.0511118]
[1742400147726,7.5702,132.08,132.07,0.0511118]
[1742400147925,34.6854614,132.1,132.07,0.0511118]
[1742400148928,7.5702,132.08,132.07,0.0511118]
[1742400149624,42.20356862,132.08,132.07,0.0511118]
[1742400150628,0.05209278,132.1,132.07,31.5511118]
[1742400150832,5.67794811,132.17,132.13,7.5673]
[1742400151031,34.63336862,132.18,132.13,31.5]
[1742400151531,42.19806862,132.18,132.13,31.5]
[1742400151731,337.82135418,132.2,132.13,31.5]
[1742400151932,0.05718453,132.17,132.14,0.05289768]
[1742400152632,7.62258453,132.17,132.14,0.05289768]
[1742400152826,0.05718453,132.17,132.14,0.05289768]
[1742400153228,7.566,132.16,132.14,0.05289768]
[1742400153927,0.05718453,132.17,132.14,0.05289768]
[1742400156029,0.05718453,132.17,132.15,7.5657]
[1742400156229,0.05718453,132.17,132.14,0.05289768]
[1742400156527,7.62228453,132.17,132.14,7.61909768]
[1742400156728,0.05718453,132.17,132.14,0.05289768]
[1742400157230,7.62268453,132.17,132.14,7.61949768]
[1742400157427,7.62268453,132.17,132.14,0.05289768]
[1742400157729,0.05718453,132.17,132.14,0.05289768]
[1742400158230,7.62248453,132.17,132.14,7.61929768]
[1742400158530,7.62248453,132.17,132.14,0.05289768]
[1742400158929,7.62248453,132.17,132.14,7.61939768]
[1742400159129,0.05718453,132.17,132.14,0.05289768]
[1742400159530,34.63336862,132.16,132.14,0.05289768]
[1742400159732,7.5662,132.15,132.14,0.05289768]
[1742400160727,34.63336862,132.16,132.14,0.05289768]
[1742400160933,0.05718453,132.17,132.14,0.05289768]
[1742400161131,0.05718453,132.17,132.14,7.61929768]
[1742400161132,7.62258453,132.17,132.14,7.61929768]
[1742400161333,0.05718453,132.17,132.14,0.05289768]
[1742400161731,34.63336862,132.16,132.14,0.05289768]
[1742400161931,34.63336862,132.16,132.11,31.5]
[1742400162131,34.63336862,132.16,132.09,35.6598]
[1742400162536,34.63336862,132.14,132.02,41.67784508]
[1742400162833,31.5,132.15,132.06,7.5709]
[1742400162834,34.63336862,132.12,132.06,7.5709]
[1742400163035,0.05697723,132.09,132.07,0.05322679]
[1742400163328,34.63336862,132.1,132.06,31.48]
[1742400163534,0.05281807,132.09,132.07,0.05284255]
[1742400165838,7.62271807,132.09,132.07,0.05284255]
[1742400166041,0.05281807,132.09,132.07,0.05284255]
[1742400166637,7.5702,132.08,132.07,0.05284255]
[1742400167738,22.16670405,132.08,132.07,0.05284255]
[1742400168141,14.59650405,132.08,132.07,0.05284255]
[1742400168440,14.59650405,132.08,132.07,7.62364255]
[1742400169036,5.61404002,132.08,132.07,7.62364255]
[1742400170038,5.61404002,132.08,132.07,0.05284255]
[1742400170340,7.50630661,132.08,132.07,0.05284255]
[1742400170540,7.50630661,132.08,132.07,7.62364255]
[1742400171236,1.89226659,132.08,132.07,7.62364255]
[1742400171543,5.43975688,132.08,132.07,7.62364255]
[1742400172039,8.46740001,132.08,132.07,0.05284255]
[1742400172238,8.46800136,132.08,132.07,0.05284255]
[1742400172535,10.36036857,132.08,132.07,0.05284255]
[1742400172939,19.06561378,132.08,132.07,0.05284255]
[1742400173243,26.63793445,132.08,132.07,0.05284255]
[1742400176039,23.61029132,132.08,132.07,0.05284255]
[1742400176645,50.67345994,132.08,132.04,31.48]
[1742400176937,14.14772411,132.07,132.04,31.48]
[1742400177131,14.14772411,132.06,132.05,7.5714]
[1742400177738,14.5529514,132.06,132.05,7.5714]
[1742400177938,16.44531861,132.06,132.04,39.10160679]
[1742400178140,14.5529514,132.05,132.04,39.10160679]
[1742400178444,14.5529514,132.05,132.04,31.52930679]
[1742400178644,16.44531861,132.05,132.04,31.52930679]
[1742400179346,16.44531861,132.05,132.04,39.10180679]
[1742400179937,7.49007803,132.05,132.04,39.10180679]
[1742400180342,1.08207803,132.05,132.04,39.10180679]
[1742400180639,7.803e-05,132.05,132.04,39.10180679]
[1742400180843,21.6752708,132.12,132.04,39.10930679]
[1742400181047,21.6752708,132.12,132.04,53.1552708]
[1742400181238,21.6752708,132.1,132.04,31.48]
[1742400181444,21.6752708,132.08,132.04,31.48]
[1742400181638,8.84170428,132.07,132.04,31.48]
[1742400181840,21.6752708,132.08,132.04,39.0522]
[1742400182036,8.78765331,132.07,132.04,39.10575878]
[1742400182240,8.7299753,132.06,132.04,31.53355878]
[1742400182544,0.05767801,132.07,132.05,7.5715]
[1742400182746,8.73002498,132.06,132.04,31.53355878]
[1742400182947,7.62877801,132.07,132.05,7.5716]
[1742400183147,8.73008522,132.06,132.04,0.05355878]
[1742400183447,16.30198522,132.05,132.04,0.05355878]
[1742400183640,8.73008522,132.05,132.01,3.9667]
[1742400183844,30.40535602,132.04,132.0,31.48]
[1742400184046,8.73008522,132.03,132.0,31.48]
[1742400184248,7.5742,132.01,132.0,31.48]
[1742400184443,16.30428522,132.01,131.99,7.5751]
[1742400184646,7.5742,132.01,131.99,7.5751]
[1742400184848,9.08366554,132.0,131.99,7.63024219]
[1742400185751,0.05119341,132.01,132.0,7.5748]
[1742400186051,0.05119341,132.01,132.0,31.48]
[1742400186243,0.05119341,132.01,131.99,0.05514219]
[1742400186447,29.2500708,132.0,131.99,0.05514219]
[1742400187647,0.05119341,132.01,131.99,0.05514219]
[1742400187847,0.05119341,132.01,131.99,31.53514219]
[1742400188049,0.05119341,132.01,131.99,39.11004219]
[1742400188350,0.05119341,132.01,131.99,31.53514219]
[1742400188751,7.5748,132.0,131.99,0.05514219]
[1742400190353,21.72646421,132.01,131.99,0.05514219]
[1742400191054,0.05119341,132.01,131.99,7.62994219]
[1742400191652,0.05119341,132.01,132.0,7.5748]
[1742400192659,0.05119341,132.01,131.99,0.05514219]
[1742400193449,7.5748,132.0,131.99,0.05514219]
[1742400194261,12.81815525,132.0,131.99,0.05514219]
[1742400194559,14.71067452,132.0,131.99,0.05514219]
[1742400196060,1.89387688,132.0,131.99,0.05514219]
[1742400196959,1.89387688,132.0,131.88,359.0]
[1742400197159,21.6752708,131.98,131.93,31.48]
[1742400197463,7.5769,131.97,131.94,7.578]
[1742400197658,21.6752708,131.98,131.93,31.48]
[1742400197864,7.5774,131.96,131.93,31.48]
[1742400198054,7.5774,131.96,131.93,39.0585]
[1742400198265,7.6356268,131.96,131.93,7.62661595]
[1742400198558,7.6356268,131.96,131.93,39.12661595]
[1742400199263,7.5777,131.95,131.93,0.04811595]
[1742400199469,21.6752708,131.94,131.93,0.04811595]
[1742400199955,29.2534708,131.94,131.93,0.04811595]
[1742400200162,318.5848976,131.96,131.86,57.3716708]
[1742400200358,287.0466708,131.96,131.86,57.3716708]
[1742400200666,287.0466708,131.96,131.92,7.5794]
[1742400200869,261.32,131.96,131.91,31.48]
[1742400201063,7.578,131.95,131.92,7.579]
[1742400201262,7.62932435,131.95,131.92,7.61957773]
[1742400201462,0.05132435,131.95,131.92,7.61957773]
[1742400201664,0.05132435,131.95,131.92,7.61967773]
[1742400201968,0.05132435,131.95,131.92,0.04057773]
[1742400202267,7.62942435,131.95,131.92,0.04057773]
[1742400202467,0.05132435,131.95,131.92,0.04057773]
[1742400202769,7.5786,131.94,131.92,0.04057773]
[1742400202964,0.05132435,131.95,131.92,0.04057773]
[1742400203170,21.6752708,131.94,131.92,0.04057773]
[1742400203467,7.5788,131.93,131.92,0.04057773]
[1742400203664,21.6752708,131.94,131.92,0.04057773]
[1742400204669,7.5788,131.93,131.92,0.04057773]
[1742400204869,21.6752708,131.94,131.92,0.04057773]
[1742400205266,29.2537708,131.94,131.92,0.04057773]
[1742400205466,21.6752708,131.94,131.92,0.04057773]
[1742400205671,29.2537708,131.94,131.92,7.61987773]
[1742400205967,21.6752708,131.94,131.92,0.04057773]
[1742400206464,29.2536708,131.94,131.92,0.04057773]
[1742400206672,1.89483055,131.93,131.92,0.04057773]
[1742400206864,1.89483055,131.93,131.92,7.61997773]
[1742400207265,31.55132435,131.95,131.92,7.61997773]
[1742400207472,5.23460538,131.94,131.92,7.61997773]
[1742400207970,26.90987618,131.94,131.92,0.04057773]
[1742400208162,9.47366818,131.93,131.92,0.04057773]
[1742400209268,14.70724753,131.93,131.92,0.04057773]
[1742400210060,14.70724753,131.93,131.88,7.5814]
[1742400210061,7.58,131.91,131.86,4.2164]
[1742400210265,7.58,131.91,131.86,35.7164]
[1742400210463,7.58,131.91,131.89,7.5809]
[1742400211172,7.62982596,131.91,131.89,7.5809]
[1742400212170,0.04982596,131.91,131.9,7.5805]
[1742400212474,1.94492219,131.91,131.86,35.7164]
[1742400212868,0.04982596,131.91,131.9,7.5805]
[1742400217982,53.1552708,131.97,131.88,53.1752708]
[1742400217983,21.6752708,131.97,131.88,53.1752708]
[1742400218191,5.23473037,131.96,131.9,21.6752708]
[1742400218389,1.89457195,131.96,131.91,43.9774]
[1742400218887,1.89457195,131.95,131.91,43.9774]
[1742400219392,1.9511931,131.95,131.94,7.5778]
[1742400219591,1.9511931,131.95,131.94,39.0578]
[1742400219794,0.05662115,131.95,131.94,39.0578]
[1742400222097,0.05662115,131.95,131.94,31.48]
[1742400222292,14.77499572,131.95,131.92,31.52982596]
[1742400222493,9.52878849,131.95,131.92,39.10892596]
[1742400222696,1.89446734,131.94,131.92,39.10892596]
[1742400223196,0.05662115,131.95,131.93,7.5788]
[1742400223390,7.63462115,131.95,131.92,31.52982596]
[1742400223591,29.30989195,131.95,131.92,31.52982596]
[1742400223893,29.30989195,131.95,131.92,39.10892596]
[1742400224194,1.89454816,131.94,131.92,31.52982596]
[1742400224595,29.30989195,131.95,131.93,7.5785]
[1742400224796,5.25270266,131.94,131.93,7.5785]
[1742400225197,5.25269746,131.94,131.93,7.5785]
[1742400225386,5.25269746,131.94,131.92,39.10892596]
[1742400225590,1.89454858,131.94,131.92,39.10892596]
[1742400225792,1.89454858,131.93,131.92,39.10892596]
[1742400226997,21.73189195,131.95,131.92,31.52982596]
[1742400227192,5.2574822,131.94,131.92,31.52982596]
[1742400227385,5.26238167,131.93,131.92,39.10902596]
[1742400227798,7.15692037,131.93,131.92,39.10902596]
[1742400228199,1.8945387,131.93,131.92,39.10902596]
[1742400228393,7.16018124,131.93,131.92,39.10902596]
[1742400229700,7.16018124,131.93,131.92,31.52982596]
[1742400230293,5.26564254,131.93,131.92,31.52982596]
[1742400230494,43.24962757,131.93,131.92,0.04982596]
[1742400231801,45.14458064,131.93,131.92,0.04982596]
[1742400232401,45.33890571,131.93,131.92,0.04982596]
[1742400234201,45.34184661,131.93,131.92,0.04982596]
[1742400236805,7.5803,131.91,131.89,31.46]
[1742400237004,14.19282274,131.9,131.89,31.46]
[1742400237895,19.11958682,131.9,131.88,31.46]
[1742400238101,14.19282274,131.89,131.88,31.46]
[1742400238298,26.70118682,131.89,131.87,31.46]
[1742400238600,14.19282274,131.88,131.87,31.46]
[1742400238803,21.77482274,131.88,131.83,22.64243704]
[1742400239002,21.77482274,131.88,131.84,31.46]
[1742400239003,14.19282274,131.87,131.84,31.46]
[1742400239203,14.19282274,131.86,131.83,12.2017]
[1742400239410,14.19282274,131.85,131.84,31.46]
[1742400239708,16.08777581,131.85,131.84,39.0437]
[1742400239906,16.08777581,131.85,131.84,7.5837]
[1742400240107,16.08777581,131.85,131.84,39.0437]
[1742400240802,16.08777581,131.85,131.84,31.46]
[1742400241203,19.12088817,131.85,131.83,7.5842]
[1742400241403,14.19282274,131.84,131.8,54.02334508]
[1742400241603,14.19282274,131.83,131.82,31.46]
[1742400241807,21.83413902,131.83,131.82,31.46]
[1742400242007,26.76220445,131.83,131.82,31.46]
[1742400242200,26.76190445,131.83,131.82,31.46]
[1742400242800,0.05641628,131.83,131.82,31.46]
[1742400243002,19.58392633,131.83,131.8,41.67784508]
[1742400243208,14.59788816,131.82,131.81,39.0453]
[1742400243611,16.49389658,131.82,131.81,39.0453]
[1742400243913,7.51058079,131.82,131.81,39.0453]
[1742400244415,0.05641628,131.83,131.82,7.5851]
[1742400246612,1.628e-05,131.83,131.82,7.5851]
[1742400246812,1.628e-05,131.83,131.82,11.4811]
[1742400248716,1.628e-05,131.83,131.82,19.0611]
[1742400249514,1.628e-05,131.83,131.82,23.0014]
[1742400251006,25.7112708,131.92,131.91,7.58]
[1742400251312,25.7112708,131.92,131.89,31.46]
[1742400251718,21.6752708,131.9,131.89,31.46]
[1742400251919,21.6752708,131.9,131.87,31.46]
[1742400252121,29.2557708,131.9,131.87,31.46]
[1742400252313,29.30445782,131.9,131.87,31.51183253]
[1742400252509,21.72395782,131.9,131.87,31.51183253]
[1742400252714,21.72395782,131.9,131.88,7.5816]
[1742400253019,21.72395782,131.9,131.87,31.51183253]
[1742400253424,21.72395782,131.9,131.87,39.09383253]
[1742400254821,29.30465782,131.9,131.87,39.09383253]
[1742400255022,21.72395782,131.9,131.87,31.51183253]
[1742400255616,0.04868702,131.9,131.87,31.51183253]
[1742400256012,21.72395782,131.9,131.87,31.51183253]
[1742400256413,7.11655447,131.89,131.87,31.51183253]
[1742400256623,5.22125264,131.88,131.87,31.51183253]
[1742400257019,28.79186729,131.88,131.87,0.05183253]
[1742400257526,28.79186729,131.88,131.87,7.63413253]
[1742400257819,7.11659649,131.88,131.87,7.63413253]
[1742400260221,7.11659649,131.88,131.87,0.05183253]
[1742400260541,14.69829649,131.88,131.87,0.05183253]
[1742400260819,9.47700183,131.88,131.87,0.05183253]
[1742400261232,23.39312089,131.88,131.87,0.05183253]
[1742400261627,15.81142089,131.88,131.87,0.05183253]
[1742400262324,15.81142089,131.88,131.87,7.63413253]
[1742400262524,15.81142089,131.88,131.87,0.05183253]
[1742400262821,28.77487459,131.88,131.87,0.05183253]
[1742400264227,21.19317459,131.88,131.84,31.44]
[1742400264529,13.91611906,131.85,131.84,31.44]
[1742400264827,21.19317459,131.85,131.84,31.44]
[1742400265218,24.22639704,131.85,131.84,7.584]
[1742400265517,24.22639704,131.85,131.82,31.44]
[1742400265723,5.3817537,131.84,131.83,7.5842]
[1742400266127,19.29787276,131.84,131.82,31.44]
[1742400266427,18.84464334,131.84,131.83,7.5846]
[1742400266629,24.2323935,131.84,131.83,7.5846]
[1742400267327,24.2323935,131.84,131.82,39.0248]
[1742400267528,18.84464334,131.84,131.82,39.0248]
[1742400268029,4.92852428,131.84,131.83,7.5846]
[1742400268226,0.04967462,131.86,131.82,31.44]
[1742400268428,5.38793425,131.85,131.82,31.44]
[1742400268629,13.96579368,131.86,131.84,7.5836]
[1742400268825,5.38881043,131.85,131.84,7.5836]
[1742400269031,19.30492949,131.85,131.79,12.7491]
[1742400269227,13.91611906,131.83,131.8,31.44]
[1742400269430,13.97442237,131.83,131.81,31.44]
[1742400269632,0.05830331,131.83,131.82,7.5851]
[1742400269829,5.4489554,131.83,131.82,7.5851]
[1742400270130,10.37826317,131.83,131.81,31.44]
[1742400270327,4.98761108,131.83,131.81,31.44]
[1742400270823,0.05830331,131.83,131.82,7.5851]
[1742400271029,5.44969746,131.83,131.82,7.5851]
[1742400271341,10.37904589,131.83,131.82,39.0251]
[1742400271635,4.98765174,131.83,131.82,39.0251]
[1742400271834,10.37943161,131.83,131.82,31.44]
[1742400272131,24.29555067,131.83,131.8,31.44]
[1742400272436,5.39177987,131.82,131.8,31.44]
[1742400272628,4.92934843,131.82,131.8,31.44]
[1742400273133,4.92934843,131.82,131.81,7.5857]
[1742400273431,5.39301228,131.82,131.81,7.5857]
[1742400273728,7.28900711,131.82,131.81,7.5857]
[1742400274134,7.28900711,131.82,131.8,39.026]
[1742400274335,4.92958574,131.82,131.8,39.026]
[1742400274732,12.51478574,131.82,131.8,31.44]
[1742400274936,10.32595756,131.81,131.79,7.5867]
[1742400275136,5.39602926,131.8,131.75,18.32013704]
[1742400275430,4.92958574,131.79,131.77,13.91611906]
[1742400275835,4.98564117,131.79,131.77,13.91611906]
[1742400276036,1.89599483,131.78,131.77,21.50411906]
[1742400277133,7.29308232,131.78,131.77,21.50411906]
[1742400277329,7.29308232,131.78,131.77,7.588]
[1742400277529,10.32729217,131.78,131.77,21.50411906]
[1742400277933,10.32729217,131.78,131.77,52.92411906]
[1742400279227,10.32729217,131.78,131.77,39.008]
[1742400280337,9.217e-05,131.78,131.77,60.7670478]
[1742400280930,4.76e-05,131.79,131.78,7.5874]
[1742400283837,4.76e-05,131.79,131.77,39.05892024]
[1742400284140,4.76e-05,131.79,131.77,31.47112024]
[1742400284639,4.76e-05,131.79,131.78,7.5874]
[1742400285941,4.76e-05,131.79,131.77,39.05882024]
[1742400286742,4.76e-05,131.79,131.78,7.5874]
[1742400287136,8.80341931,131.79,131.78,7.5874]
[1742400289341,8.80341931,131.79,131.77,39.05882024]
[1742400289544,8.80337171,131.78,131.77,39.05882024]
[1742400289747,8.80337171,131.78,131.77,31.47112024]
[1742400289934,8.80337171,131.78,131.77,0.05112024]
[1742400290140,30.56241951,131.78,131.71,31.42]
[1742400290343,7.589,131.76,131.73,7.5902]
[1742400290543,8.80337171,131.75,131.73,7.5902]
[1742400290743,8.80337171,131.74,131.73,7.5902]
[1742400291242,0.04884517,131.75,131.74,7.5897]
[1742400291647,3.08427097,131.75,131.74,39.0097]
[1742400292343,8.40341693,131.75,131.74,31.42]
[1742400292541,8.40341693,131.75,131.73,7.5901]
[1742400292741,5.31914596,131.74,131.73,7.5901]
[1742400292942,5.31943091,131.74,131.73,7.5901]
[1742400293142,10.25213871,131.74,131.73,7.5901]
[1742400295344,10.25213871,131.74,131.69,4.0017]
[1742400295345,10.25213871,131.74,131.7,31.42]
[1742400295648,5.31943091,131.73,131.7,31.42]
[1742400295849,5.31943091,131.72,131.71,7.5915]
[1742400296144,4.9327078,131.73,131.7,31.42]
[1742400296344,4.9327078,131.73,131.72,7.5909]
[1742400296544,10.29504733,131.73,131.72,7.5909]
[1742400296746,10.29504734,131.73,131.72,7.5909]
[1742400297143,10.29504734,131.73,131.64,386.60843215]
[1742400297349,5.30975189,131.72,131.67,53.1790478]
[1742400297547,5.30975189,131.71,131.67,53.1790478]
[1742400297849,4.9327078,131.72,131.67,53.1790478]
[1742400298150,0.05428935,131.7,131.67,21.7590478]
[1742400298349,0.05428935,131.7,131.68,31.4]
[1742400299452,5.66560029,131.69,131.68,31.4]
[1742400299948,7.56337111,131.69,131.68,31.4]
[1742400300250,1.89777082,131.69,131.68,38.9932]
[1742400300447,16.63104587,131.69,131.68,39.0132]
[1742400300652,16.63104587,131.69,131.68,7.5932]
[1742400300848,16.63104587,131.69,131.68,31.42]
[1742400301047,16.63104587,131.69,131.67,7.5935]
[1742400301248,5.66664425,131.68,131.67,39.0135]
[1742400301751,7.56441507,131.68,131.67,39.0135]
[1742400302249,1.89777082,131.68,131.67,39.0135]
[1742400302452,0.05428935,131.7,131.69,7.5926]
[1742400302650,14.77639896,131.7,131.69,7.5926]
[1742400303047,5.7166392,131.7,131.69,7.5926]
[1742400303254,7.6144234,131.7,131.69,7.5926]
[1742400303552,7.61333001,131.7,131.69,7.5926]
[1742400303755,5.71554581,131.7,131.69,7.5926]
[1742400305057,0.05428935,131.7,131.69,7.5926]
[1742400305754,8.935e-05,131.7,131.69,7.5926]
[1742400307156,8.935e-05,131.7,131.69,21.5322236]
[1742400311352,13.9396236,131.77,131.72,13.9396236]
[1742400311551,14.27475385,131.76,131.73,31.4]
[1742400311755,5.49028994,131.75,131.73,31.4]
[1742400312063,13.9396236,131.77,131.75,7.5888]
[1742400312256,14.277001,131.76,131.75,7.5888]
[1742400312457,37.70248121,131.76,131.75,0.05168636]
[1742400312657,30.11567315,131.76,131.71,31.4]
[1742400312957,14.27899294,131.75,131.73,7.59]
[1742400313265,5.49192036,131.74,131.71,45.3396236]
[1742400313461,1.89705661,131.75,131.71,45.3396236]
[1742400313661,12.5838,131.79,131.71,45.3396236]
[1742400313662,5.49394786,131.74,131.72,13.9396236]
[1742400313855,0.0504058,131.74,131.72,13.9396236]
[1742400314054,0.0504058,131.74,131.73,7.5903]
[1742400314253,5.54575357,131.74,131.73,7.5903]
[1742400315158,14.34070228,131.74,131.73,7.5903]